[Event "EYCC Open-U14 2019"]
[Site "Bratislava"]
[Date "2019.08.10"]
[Round "9.46"]
[White "Bansal, Saahil"]
[Black "Silva, Pedro Gil Ferreira D"]
[Result "0-1"]
[ECO "E11"]
[WhiteElo "1547"]
[BlackElo "2049"]
[Annotator "NA RC"]
[PlyCount "104"]
[EventDate "2019.08.02"]
[EventType "swiss"]
[EventCountry "SVK"]
[SourceTitle "playchess.com"]
[Source "ChessBase"]
[SourceQuality "1"]
[TimeControl "40/5400+30:1800+30"]

1. d4 {[%emt 0:00:00]} Nf6 {[%emt 0:00:00]} 2. c4 {[%emt 0:00:00]} e6 {[%emt 0:00:00]} 3. Nf3 {[%emt 0:00:00]} Bb4+ {[%emt 0:00:09]} 4. Nbd2 {[%emt 0:02:09]} O-O {[%emt 0:00:08]} 5. g3 {[%emt 0:00:51]} d5 {[%emt 0:06:00]} 6. Bg2 {[%emt 0:03:25]} dxc4 {[%emt 0:04:00]} 7. Qa4 {[%emt 0:57:14]} Nc6 {[%emt 0:05:08]} 8. O-O {[%emt 0:11:36]} Rb8 {[%emt 0:06:54]} 9. Ne5 {[%emt 0:04:03]} b5 {[%emt 0:36:49]} 10. Nxc6 {[%emt 0:01:48]} bxa4 {[%emt 0:00:31]} 11. Nxd8 {[%emt 0:01:12]} Rxd8 {[%emt 0:00:05]} 12. Nxc4 {[%emt 0:01:21]} Ba6 {[%emt 0:01:09]} 13. b3 {[%emt 0:07:45]} Bxc4 {[%emt 0:00:40]} 14. bxc4 {[%emt 0:00:59]} Bc3 {[%emt 0:00:07]} 15. Bf4 {[%emt 0:00:24]} Bxa1 {[%emt 0:00:15]} 16. Rxa1 {[%emt 0:00:25]} Rxd4 {[%emt 0:00:11]} 17. Bxc7 {[%emt 0:00:06]} Rc8 {[%emt 0:00:05]} 18. Rb1 {[%emt 0:00:34]} Rxc4 {[%emt 0:00:33]} 19. Bf4 {[%emt 0:01:00]} Nd5 {[%emt 0:00:21]} 20. Bxd5 {[%emt 0:00:22]} exd5 {[%emt 0:00:05]} 21. Rb7 {[%emt 0:00:09]} Rc2 {[%emt 0:00:29]} 22. Rxa7 {[%emt 0:00:12]} Rxa2 {[%emt 0:00:06]} 23. Ra5 {[%emt 0:00:10]} a3 {[%emt 0:00:23]} 24. Bd6 {[%emt 0:00:20]} Rxe2 {[%emt 0:00:17]} 25. Rxa3 {[%emt 0:00:08]} h6 {[%emt 0:00:11]} 26. Rd3 {[%emt 0:00:07]} Rcc2 {[%emt 0:00:21]} 27. Rxd5 {[%emt 0:00:15]} Rxf2 {[%emt 0:00:05]} 28. Bc5 {[%emt 0:00:07]} Rg2+ {[%emt 0:00:20]} 29. Kf1 {[%emt 0:00:09]} Rxh2 {[%emt 0:00:04]} 30. Kg1 {[%emt 0:00:21]} Rhg2+ {[%emt 0:00:18]} 31. Kf1 {[%emt 0:00:06]} Rxg3 {[%emt 0:00:05]} 32. Rd8+ {[%emt 0:00:04]} Kh7 {[%emt 0:00:04]} 33. Bd4 {[%emt 0:00:09]} Rd3 {[%emt 0:00:09]} 34. Bf6 {[%emt 0:00:13]} Rf3+ {[%emt 0:00:08]} 35. Ke1 {[%emt 0:00:05]} Rxf6 {[%emt 0:00:04]} 36. Rd1 {[%emt 0:00:10]} Rfc6 {[%emt 0:00:11]} 37. Rd3 {[%emt 0:00:13]} Rc1+ {[%emt 0:00:06]} 38. Kd2 {[%emt 0:00:06]} R6c2+ {[%emt 0:00:03]} 39. Ke3 {[%emt 0:00:05]} Rc3 {[%emt 0:00:05]} 40. Rxc3 {[%emt 0:00:00]} Rxc3+ {[%emt 0:00:00]} 41. Kf4 {[%emt 0:00:10]} g5+ {[%emt 0:00:14]} 42. Kg4 {[%emt 0:00:04]} Rc4+ {[%emt 0:00:13]} 43. Kg3 {[%emt 0:00:12]} f5 {[%emt 0:00:04]} 44. Kf3 {[%emt 0:00:04]} Rc3+ {[%emt 0:00:06]} 45. Ke2 {[%emt 0:00:04]} g4 {[%emt 0:00:07]} 46. Kf2 {[%emt 0:00:02]} f4 {[%emt 0:00:04]} 47. Kf1 {[%emt 0:00:06]} Rc2 {[%emt 0:00:04]} 48. Ke1 {[%emt 0:00:06]} f3 {[%emt 0:00:03]} 49. Kd1 {[%emt 0:00:05]} Re2 {[%emt 0:00:05]} 50. Kc1 {[%emt 0:00:02]} g3 {[%emt 0:00:04]} 51. Kd1 {[%emt 0:00:03]} g2 {[%emt 0:00:05]} 52. Kc1 {[%emt 0:00:08]} g1=Q# {[%emt 0:00:05]} 0-1

[Event "EYCC Open-U14 2019"]
[Site "Bratislava"]
[Date "2019.08.10"]
[Round "9.47"]
[White "Schouten, Mathias Lind"]
[Black "Weissenhofer, Jonas"]
[Result "1-0"]
[ECO "B90"]
[WhiteElo "1961"]
[BlackElo "1692"]
[Annotator "NA RC"]
[PlyCount "85"]
[EventDate "2019.08.02"]
[EventType "swiss"]
[EventCountry "SVK"]
[SourceTitle "playchess.com"]
[Source "ChessBase"]
[SourceQuality "1"]
[TimeControl "40/5400+30:1800+30"]

1. e4 {[%emt 0:00:00]} c5 {[%emt 0:00:00]} 2. Nf3 {[%emt 0:00:00]} d6 {[%emt 0:00:00]} 3. d4 {[%emt 0:00:00]} cxd4 {[%emt 0:00:00]} 4. Nxd4 {[%emt 0:00:00]} Nf6 {[%emt 0:00:00]} 5. Nc3 {[%emt 0:00:00]} a6 {[%emt 0:00:04]} 6. h3 {[%emt 0:00:00]} e6 {[%emt 0:04:00]} 7. g4 {[%emt 0:00:00]} Be7 {[%emt 0:03:03]} 8. Bg2 {[%emt 0:03:08]} Nc6 {[%emt 0:05:17]} 9. Nxc6 {[%emt 0:06:31]} bxc6 {[%emt 0:00:33]} 10. e5 {[%emt 0:01:59]} Nd5 {[%emt 0:01:18]} 11. exd6 {[%emt 0:02:06]} Bxd6 {[%emt 0:06:33]} 12. Ne4 {[%emt 0:03:49]} Be7 {[%emt 0:02:14]} 13. c4 {[%emt 0:05:42]} Nb6 {[%emt 0:03:38]} 14. Qxd8+ {[%emt 0:00:08]} Bxd8 {[%emt 0:03:11]} 15. b3 {[%emt 0:04:58]} Be7 {[%emt 0:11:09]} 16. Be3 {[%emt 0:03:29]} Nd7 {[%emt 0:03:06]} 17. Rd1 {[%emt 0:03:55]} Bb7 {[%emt 0:10:27]} 18. Ke2 {[%emt 0:18:03]} Rc8 {[%emt 0:02:15]} 19. f4 {[%emt 0:07:59]} h6 {[%emt 0:05:29]} 20. Nd6+ {[%emt 0:05:42]} Bxd6 {[%emt 0:00:56]} 21. Rxd6 {[%emt 0:00:03]} Ke7 {[%emt 0:00:20]} 22. Rhd1 {[%emt 0:00:05]} Rhd8 {[%emt 0:00:12]} 23. Bf2 {[%emt 0:08:19]} g5 {[%emt 0:04:51]} 24. Be1 {[%emt 0:11:27]} Nc5 {[%emt 0:03:53]} 25. Rxd8 {[%emt 0:02:55]} Rxd8 {[%emt 0:00:19]} 26. Bb4 {[%emt 0:01:21]} Rxd1 {[%emt 0:00:13]} 27. Kxd1 {[%emt 0:00:03]} Kd6 {[%emt 0:00:19]} 28. fxg5 {[%emt 0:01:47]} hxg5 {[%emt 0:00:09]} 29. Ke2 {[%emt 0:01:06]} f5 {[%emt 0:01:09]} 30. gxf5 {[%emt 0:00:03]} exf5 {[%emt 0:00:06]} 31. Ke3 {[%emt 0:00:02]} a5 {[%emt 0:00:25]} 32. Ba3 {[%emt 0:00:13]} a4 {[%emt 0:00:20]} 33. Kd4 {[%emt 0:00:08]} axb3 {[%emt 0:00:10]} 34. Bxc5+ {[%emt 0:00:05]} Ke6 {[%emt 0:00:10]} 35. axb3 {[%emt 0:00:03]} g4 {[%emt 0:00:21]} 36. h4 {[%emt 0:01:44]} f4 {[%emt 0:00:16]} 37. Ke4 {[%emt 0:00:26]} f3 {[%emt 0:00:07]} 38. Bf1 {[%emt 0:00:11]} Bc8 {[%emt 0:00:17]} 39. Kf4 {[%emt 0:00:21]} Kf6 {[%emt 0:00:10]} 40. Bd4+ {[%emt 0:00:00]} Kg6 {[%emt 0:00:00]} 41. Bd3+ {[%emt 0:01:32]} Kh5 {[%emt 0:00:28]} 42. Bf2 {[%emt 0:00:04]} Be6 {[%emt 0:00:18]} 43. Ke4 1-0